Workbook

Sheet HeroBasicEquipConfig
A1: ID | B1: eqName | D1: goldCost | E1: lv | F1: profession | G1: Type | H1: desc | J1: AttType | K1: AttTypeLab | L1: AttValue | M1: disItems | N1: count
A2: int | B2: int | D2: int | E2: int | F2: int | G2: int | H2: int | J2: int[] | K2: int[] | L2: int[] | M2: int[] | N2: int[]
A4: ID 职业x10000+ 类型x1000+ 等级 | B4: 名称 | C4: VLOOKUP 语言表中的实际值 (策划看) | D4: 升级 金币消耗 | E4: 等级 | F4: 职业 1.战士 2.法师 3.牧师 4.游侠 | G4: 装备类型 1:战靴 2:衣服 3:手套 4:头盔 5:项链 | H4: 装备描述 | I4: 品质 1:白色 2:绿色 3:蓝色 4:紫色 5:橙色 6:暗金 7:远古 | J4: 属性类型 1生命值 2攻击力 3防御力 4攻击速度 5暴击率 6暴击伤害 7闪避几率 8命中 9吸血 | K4: 动态文本描述 | L4: 标准属性值 (白色) | M4: 分解获得的道具 | N4: 对应数量 | O4: 备注
A5: =F5*10000+G5*1000+E5 -> 11010 | D5: 100 | E5: 10 | F5: 1 | G5: 1 | J5: 1;2;3 | L5: =_xlfn.CONCAT(R5,";",S5,";",T5,";",U5) -> 100;50;10;20 | M5: 1001 | N5: 800 | R5: 100 | S5: 50 | T5: 10 | U5: 20
A6: =F6*10000+G6*1000+E6 -> 11015 | D6: 150 | E6: 15 | F6: 1 | G6: 1 | J6: 1;2;3 | L6: =_xlfn.CONCAT(R6,";",S6,";",T6,";",U6) -> 150;60;20;21 | M6: 1001 | N6: 800 | R6: 150 | S6: 60 | T6: 20 | U6: 21
A7: 11020 | D7: 200 | E7: 20 | F7: 1 | G7: 1 | J7: 1;2;3 | L7: 200;70;30;22 | M7: 1001 | N7: 800 | R7: 200 | S7: 70 | T7: 30 | U7: 22
A8: 11025 | D8: 250 | E8: 25 | F8: 1 | G8: 1 | J8: 1;2;3 | L8: 250;80;40;23 | M8: 1001 | N8: 800 | R8: 250 | S8: 80 | T8: 40 | U8: 23
A9: 11030 | D9: 300 | E9: 30 | F9: 1 | G9: 1 | J9: 1;2;3 | L9: 300;90;50;24 | M9: 1001 | N9: 800 | R9: 300 | S9: 90 | T9: 50 | U9: 24
A10: 11035 | D10: 350 | E10: 35 | F10: 1 | G10: 1 | J10: 1;2;3 | L10: 350;100;60;25 | M10: 1001 | N10: 800 | R10: 350 | S10: 100 | T10: 60 | U10: 25
A11: 11040 | D11: 400 | E11: 40 | F11: 1 | G11: 1 | J11: 1;2;3 | L11: 400;110;70;26 | M11: 1001 | N11: 800 | R11: 400 | S11: 110 | T11: 70 | U11: 26
A12: 11045 | D12: 450 | E12: 45 | F12: 1 | G12: 1 | J12: 1;2;3 | L12: 450;120;80;27 | M12: 1001 | N12: 800 | R12: 450 | S12: 120 | T12: 80 | U12: 27
A13: 11050 | D13: 500 | E13: 50 | F13: 1 | G13: 1 | J13: 1;2;3 | L13: 500;130;90;28 | M13: 1001 | N13: 800 | R13: 500 | S13: 130 | T13: 90 | U13: 28
A14: 11055 | D14: 550 | E14: 55 | F14: 1 | G14: 1 | J14: 1;2;3 | L14: 550;140;100;29 | M14: 1001 | N14: 800 | R14: 550 | S14: 140 | T14: 100 | U14: 29
A15: 11060 | D15: 600 | E15: 60 | F15: 1 | G15: 1 | J15: 1;2;3 | L15: 600;150;110;30 | M15: 1001 | N15: 800 | R15: 600 | S15: 150 | T15: 110 | U15: 30
A16: 11065 | D16: 650 | E16: 65 | F16: 1 | G16: 1 | J16: 1;2;3 | L16: 650;160;120;31 | M16: 1001 | N16: 800 | R16: 650 | S16: 160 | T16: 120 | U16: 31
A17: 11070 | D17: 700 | E17: 70 | F17: 1 | G17: 1 | J17: 1;2;3 | L17: 700;170;130;32 | M17: 1001 | N17: 800 | R17: 700 | S17: 170 | T17: 130 | U17: 32
A18: 11075 | D18: 750 | E18: 75 | F18: 1 | G18: 1 | J18: 1;2;3 | L18: 750;180;140;33 | M18: 1001 | N18: 800 | R18: 750 | S18: 180 | T18: 140 | U18: 33
A19: 11080 | D19: 800 | E19: 80 | F19: 1 | G19: 1 | J19: 1;2;3 | L19: 800;190;150;34 | M19: 1001 | N19: 800 | R19: 800 | S19: 190 | T19: 150 | U19: 34
A20: 11085 | D20: 850 | E20: 85 | F20: 1 | G20: 1 | J20: 1;2;3 | L20: 850;200;160;35 | M20: 1001 | N20: 800 | R20: 850 | S20: 200 | T20: 160 | U20: 35
A21: 11090 | D21: 900 | E21: 90 | F21: 1 | G21: 1 | J21: 1;2;3 | L21: 900;210;170;36 | M21: 1001 | N21: 800 | R21: 900 | S21: 210 | T21: 170 | U21: 36
A22: 11095 | D22: 950 | E22: 95 | F22: 1 | G22: 1 | J22: 1;2;3 | L22: 950;220;180;37 | M22: 1001 | N22: 800 | R22: 950 | S22: 220 | T22: 180 | U22: 37
A23: 11100 | D23: 1000 | E23: 100 | F23: 1 | G23: 1 | J23: 1;2;3 | L23: 1000;230;190;38 | M23: 1001 | N23: 800 | R23: 1000 | S23: 230 | T23: 190 | U23: 38
A24: 11105 | D24: 1050 | E24: 105 | F24: 1 | G24: 1 | J24: 1;2;3 | L24: 1050;240;200;39 | M24: 1001 | N24: 800 | R24: 1050 | S24: 240 | T24: 200 | U24: 39
A25: 11110 | D25: 1100 | E25: 110 | F25: 1 | G25: 1 | J25: 1;2;3 | L25: 1100;250;210;40 | M25: 1001 | N25: 800 | R25: 1100 | S25: 250 | T25: 210 | U25: 40
A26: 11115 | D26: 1150 | E26: 115 | F26: 1 | G26: 1 | J26: 1;2;3 | L26: 1150;260;220;41 | M26: 1001 | N26: 800 | R26: 1150 | S26: 260 | T26: 220 | U26: 41
A27: 11120 | D27: 1200 | E27: 120 | F27: 1 | G27: 1 | J27: 1;2;3 | L27: 1200;270;230;42 | M27: 1001 | N27: 800 | R27: 1200 | S27: 270 | T27: 230 | U27: 42
A28: 11125 | D28: 1250 | E28: 125 | F28: 1 | G28: 1 | J28: 1;2;3 | L28: 1250;280;240;43 | M28: 1001 | N28: 800 | R28: 1250 | S28: 280 | T28: 240 | U28: 43
A29: 11130 | D29: 1300 | E29: 130 | F29: 1 | G29: 1 | J29: 1;2;3 | L29: 1300;290;250;44 | M29: 1001 | N29: 800 | R29: 1300 | S29: 290 | T29: 250 | U29: 44
A30: 11135 | D30: 1350 | E30: 135 | F30: 1 | G30: 1 | J30: 1;2;3 | L30: 1350;300;260;45 | M30: 1001 | N30: 800 | R30: 1350 | S30: 300 | T30: 260 | U30: 45
A31: 11140 | D31: 1400 | E31: 140 | F31: 1 | G31: 1 | J31: 1;2;3 | L31: 1400;310;270;46 | M31: 1001 | N31: 800 | R31: 1400 | S31: 310 | T31: 270 | U31: 46
A32: 11145 | D32: 1450 | E32: 145 | F32: 1 | G32: 1 | J32: 1;2;3 | L32: 1450;320;280;47 | M32: 1001 | N32: 800 | R32: 1450 | S32: 320 | T32: 280 | U32: 47
A33: 11150 | D33: 1500 | E33: 150 | F33: 1 | G33: 1 | J33: 1;2;3 | L33: 1500;330;290;48 | M33: 1001 | N33: 800 | R33: 1500 | S33: 330 | T33: 290 | U33: 48
A34: 11155 | D34: 1550 | E34: 155 | F34: 1 | G34: 1 | J34: 1;2;3 | L34: 1550;340;300;49 | M34: 1001 | N34: 800 | R34: 1550 | S34: 340 | T34: 300 | U34: 49
A35: 11160 | D35: 1600 | E35: 160 | F35: 1 | G35: 1 | J35: 1;2;3 | L35: 1600;350;310;50 | M35: 1001 | N35: 800 | R35: 1600 | S35: 350 | T35: 310 | U35: 50
A36: 11165 | D36: 1650 | E36: 165 | F36: 1 | G36: 1 | J36: 1;2;3 | L36: 1650;360;320;51 | M36: 1001 | N36: 800 | R36: 1650 | S36: 360 | T36: 320 | U36: 51
A37: 11170 | D37: 1700 | E37: 170 | F37: 1 | G37: 1 | J37: 1;2;3 | L37: 1700;370;330;52 | M37: 1001 | N37: 800 | R37: 1700 | S37: 370 | T37: 330 | U37: 52
A38: 11175 | D38: 1750 | E38: 175 | F38: 1 | G38: 1 | J38: 1;2;3 | L38: =_xlfn.CONCAT(R38,";",S38,";",T38,";",U38) -> 1750;380;340;53 | M38: 1001 | N38: 800 | R38: 1750 | S38: 380 | T38: 340 | U38: 53
A39: 11180 | D39: 1800 | E39: 180 | F39: 1 | G39: 1 | J39: 1;2;3 | L39: 1800;390;350;54 | M39: 1001 | N39: 800 | R39: 1800 | S39: 390 | T39: 350 | U39: 54
A40: 11185 | D40: 1850 | E40: 185 | F40: 1 | G40: 1 | J40: 1;2;3 | L40: 1850;400;360;55 | M40: 1001 | N40: 800 | R40: 1850 | S40: 400 | T40: 360 | U40: 55
A41: 11190 | D41: 1900 | E41: 190 | F41: 1 | G41: 1 | J41: 1;2;3 | L41: 1900;410;370;56 | M41: 1001 | N41: 800 | R41: 1900 | S41: 410 | T41: 370 | U41: 56
A42: 11195 | D42: 1950 | E42: 195 | F42: 1 | G42: 1 | J42: 1;2;3 | L42: 1950;420;380;57 | M42: 1001 | N42: 800 | R42: 1950 | S42: 420 | T42: 380 | U42: 57
A43: 11200 | D43: 2000 | E43: 200 | F43: 1 | G43: 1 | J43: 1;2;3 | L43: 2000;430;390;58 | M43: 1001 | N43: 800 | R43: 2000 | S43: 430 | T43: 390 | U43: 58
A44: 11205 | D44: 2050 | E44: 205 | F44: 1 | G44: 1 | J44: 1;2;3 | L44: 2050;440;400;59 | M44: 1001 | N44: 800 | R44: 2050 | S44: 440 | T44: 400 | U44: 59
A45: 11210 | D45: 2100 | E45: 210 | F45: 1 | G45: 1 | J45: 1;2;3 | L45: 2100;450;410;60 | M45: 1001 | N45: 800 | R45: 2100 | S45: 450 | T45: 410 | U45: 60
A46: 11215 | D46: 2150 | E46: 215 | F46: 1 | G46: 1 | J46: 1;2;3 | L46: 2150;460;420;61 | M46: 1001 | N46: 800 | R46: 2150 | S46: 460 | T46: 420 | U46: 61
A47: 11220 | D47: 2200 | E47: 220 | F47: 1 | G47: 1 | J47: 1;2;3 | L47: 2200;470;430;62 | M47: 1001 | N47: 800 | R47: 2200 | S47: 470 | T47: 430 | U47: 62
A48: 11225 | D48: 2250 | E48: 225 | F48: 1 | G48: 1 | J48: 1;2;3 | L48: 2250;480;440;63 | M48: 1001 | N48: 800 | R48: 2250 | S48: 480 | T48: 440 | U48: 63
A49: 11230 | D49: 2300 | E49: 230 | F49: 1 | G49: 1 | J49: 1;2;3 | L49: 2300;490;450;64 | M49: 1001 | N49: 800 | R49: 2300 | S49: 490 | T49: 450 | U49: 64
A50: 11235 | D50: 2350 | E50: 235 | F50: 1 | G50: 1 | J50: 1;2;3 | L50: 2350;500;460;65 | M50: 1001 | N50: 800 | R50: 2350 | S50: 500 | T50: 460 | U50: 65
A51: 11240 | D51: 2400 | E51: 240 | F51: 1 | G51: 1 | J51: 1;2;3 | L51: 2400;510;470;66 | M51: 1001 | N51: 800 | R51: 2400 | S51: 510 | T51: 470 | U51: 66
A52: 11245 | D52: 2450 | E52: 245 | F52: 1 | G52: 1 | J52: 1;2;3 | L52: 2450;520;480;67 | M52: 1001 | N52: 800 | R52: 2450 | S52: 520 | T52: 480 | U52: 67
A53: 11250 | D53: 2500 | E53: 250 | F53: 1 | G53: 1 | J53: 1;2;3 | L53: 2500;530;490;68 | M53: 1001 | N53: 800 | R53: 2500 | S53: 530 | T53: 490 | U53: 68
A54: 11255 | D54: 2550 | E54: 255 | F54: 1 | G54: 1 | J54: 1;2;3 | L54: 2550;540;500;69 | M54: 1001 | N54: 800 | R54: 2550 | S54: 540 | T54: 500 | U54: 69
A55: 11260 | D55: 2600 | E55: 260 | F55: 1 | G55: 1 | J55: 1;2;3 | L55: 2600;550;510;70 | M55: 1001 | N55: 800 | R55: 2600 | S55: 550 | T55: 510 | U55: 70
A56: 11265 | D56: 2650 | E56: 265 | F56: 1 | G56: 1 | J56: 1;2;3 | L56: 2650;560;520;71 | M56: 1001 | N56: 800 | R56: 2650 | S56: 560 | T56: 520 | U56: 71
A57: 11270 | D57: 2700 | E57: 270 | F57: 1 | G57: 1 | J57: 1;2;3 | L57: 2700;570;530;72 | M57: 1001 | N57: 800 | R57: 2700 | S57: 570 | T57: 530 | U57: 72
A58: 11275 | D58: 2750 | E58: 275 | F58: 1 | G58: 1 | J58: 1;2;3 | L58: 2750;580;540;73 | M58: 1001 | N58: 800 | R58: 2750 | S58: 580 | T58: 540 | U58: 73
A59: 11280 | D59: 2800 | E59: 280 | F59: 1 | G59: 1 | J59: 1;2;3 | L59: 2800;590;550;74 | M59: 1001 | N59: 800 | R59: 2800 | S59: 590 | T59: 550 | U59: 74
A60: 11285 | D60: 2850 | E60: 285 | F60: 1 | G60: 1 | J60: 1;2;3 | L60: 2850;600;560;75 | M60: 1001 | N60: 800 | R60: 2850 | S60: 600 | T60: 560 | U60: 75
A61: 11290 | D61: 2900 | E61: 290 | F61: 1 | G61: 1 | J61: 1;2;3 | L61: 2900;610;570;76 | M61: 1001 | N61: 800 | R61: 2900 | S61: 610 | T61: 570 | U61: 76
A62: 11295 | D62: 2950 | E62: 295 | F62: 1 | G62: 1 | J62: 1;2;3 | L62: 2950;620;580;77 | M62: 1001 | N62: 800 | R62: 2950 | S62: 620 | T62: 580 | U62: 77
A63: 11300 | D63: 3000 | E63: 300 | F63: 1 | G63: 1 | J63: 1;2;3 | L63: 3000;630;590;78 | M63: 1001 | N63: 800 | R63: 3000 | S63: 630 | T63: 590 | U63: 78
A64: 12010 | D64: 100 | E64: 10 | F64: 1 | G64: 2 | J64: 1;2;3 | L64: 100;50;10;20 | M64: 1001 | N64: 800 | R64: 100 | S64: 50 | T64: 10 | U64: 20
A65: 12015 | D65: 150 | E65: 15 | F65: 1 | G65: 2 | J65: 1;2;3 | L65: 150;60;20;21 | M65: 1001 | N65: 800 | R65: 150 | S65: 60 | T65: 20 | U65: 21
A66: 12020 | D66: 200 | E66: 20 | F66: 1 | G66: 2 | J66: 1;2;3 | L66: 200;70;30;22 | M66: 1001 | N66: 800 | R66: 200 | S66: 70 | T66: 30 | U66: 22
A67: 12025 | D67: 250 | E67: 25 | F67: 1 | G67: 2 | J67: 1;2;3 | L67: 250;80;40;23 | M67: 1001 | N67: 800 | R67: 250 | S67: 80 | T67: 40 | U67: 23
A68: 12030 | D68: 300 | E68: 30 | F68: 1 | G68: 2 | J68: 1;2;3 | L68: 300;90;50;24 | M68: 1001 | N68: 800 | R68: 300 | S68: 90 | T68: 50 | U68: 24
A69: 12035 | D69: 350 | E69: 35 | F69: 1 | G69: 2 | J69: 1;2;3 | L69: 350;100;60;25 | M69: 1001 | N69: 800 | R69: 350 | S69: 100 | T69: 60 | U69: 25
A70: =F70*10000+G70*1000+E70 -> 12040 | D70: 400 | E70: 40 | F70: 1 | G70: 2 | J70: 1;2;3 | L70: 400;110;70;26 | M70: 1001 | N70: 800 | R70: 400 | S70: 110 | T70: 70 | U70: 26
A71: 12045 | D71: 450 | E71: 45 | F71: 1 | G71: 2 | J71: 1;2;3 | L71: 450;120;80;27 | M71: 1001 | N71: 800 | R71: 450 | S71: 120 | T71: 80 | U71: 27
A72: 12050 | D72: 500 | E72: 50 | F72: 1 | G72: 2 | J72: 1;2;3 | L72: 500;130;90;28 | M72: 1001 | N72: 800 | R72: 500 | S72: 130 | T72: 90 | U72: 28
A73: 12055 | D73: 550 | E73: 55 | F73: 1 | G73: 2 | J73: 1;2;3 | L73: 550;140;100;29 | M73: 1001 | N73: 800 | R73: 550 | S73: 140 | T73: 100 | U73: 29
A74: 12060 | D74: 600 | E74: 60 | F74: 1 | G74: 2 | J74: 1;2;3 | L74: 600;150;110;30 | M74: 1001 | N74: 800 | R74: 600 | S74: 150 | T74: 110 | U74: 30
A75: 12065 | D75: 650 | E75: 65 | F75: 1 | G75: 2 | J75: 1;2;3 | L75: =_xlfn.CONCAT(R75,";",S75,";",T75,";",U75) -> 650;160;120;31 | M75: 1001 | N75: 800 | R75: 650 | S75: 160 | T75: 120 | U75: 31
A76: 12070 | D76: 700 | E76: 70 | F76: 1 | G76: 2 | J76: 1;2;3 | L76: 700;170;130;32 | M76: 1001 | N76: 800 | R76: 700 | S76: 170 | T76: 130 | U76: 32
A77: 12075 | D77: 750 | E77: 75 | F77: 1 | G77: 2 | J77: 1;2;3 | L77: 750;180;140;33 | M77: 1001 | N77: 800 | R77: 750 | S77: 180 | T77: 140 | U77: 33
A78: 12080 | D78: 800 | E78: 80 | F78: 1 | G78: 2 | J78: 1;2;3 | L78: 800;190;150;34 | M78: 1001 | N78: 800 | R78: 800 | S78: 190 | T78: 150 | U78: 34
A79: 12085 | D79: 850 | E79: 85 | F79: 1 | G79: 2 | J79: 1;2;3 | L79: 850;200;160;35 | M79: 1001 | N79: 800 | R79: 850 | S79: 200 | T79: 160 | U79: 35
A80: 12090 | D80: 900 | E80: 90 | F80: 1 | G80: 2 | J80: 1;2;3 | L80: 900;210;170;36 | M80: 1001 | N80: 800 | R80: 900 | S80: 210 | T80: 170 | U80: 36
A81: 12095 | D81: 950 | E81: 95 | F81: 1 | G81: 2 | J81: 1;2;3 | L81: 950;220;180;37 | M81: 1001 | N81: 800 | R81: 950 | S81: 220 | T81: 180 | U81: 37
A82: 12100 | D82: 1000 | E82: 100 | F82: 1 | G82: 2 | J82: 1;2;3 | L82: 1000;230;190;38 | M82: 1001 | N82: 800 | R82: 1000 | S82: 230 | T82: 190 | U82: 38
A83: 12105 | D83: 1050 | E83: 105 | F83: 1 | G83: 2 | J83: 1;2;3 | L83: 1050;240;200;39 | M83: 1001 | N83: 800 | R83: 1050 | S83: 240 | T83: 200 | U83: 39
A84: 12110 | D84: 1100 | E84: 110 | F84: 1 | G84: 2 | J84: 1;2;3 | L84: 1100;250;210;40 | M84: 1001 | N84: 800 | R84: 1100 | S84: 250 | T84: 210 | U84: 40
A85: 12115 | D85: 1150 | E85: 115 | F85: 1 | G85: 2 | J85: 1;2;3 | L85: 1150;260;220;41 | M85: 1001 | N85: 800 | R85: 1150 | S85: 260 | T85: 220 | U85: 41
A86: 12120 | D86: 1200 | E86: 120 | F86: 1 | G86: 2 | J86: 1;2;3 | L86: 1200;270;230;42 | M86: 1001 | N86: 800 | R86: 1200 | S86: 270 | T86: 230 | U86: 42
A87: 12125 | D87: 1250 | E87: 125 | F87: 1 | G87: 2 | J87: 1;2;3 | L87: 1250;280;240;43 | M87: 1001 | N87: 800 | R87: 1250 | S87: 280 | T87: 240 | U87: 43
A88: 12130 | D88: 1300 | E88: 130 | F88: 1 | G88: 2 | J88: 1;2;3 | L88: 1300;290;250;44 | M88: 1001 | N88: 800 | R88: 1300 | S88: 290 | T88: 250 | U88: 44
A89: 12135 | D89: 1350 | E89: 135 | F89: 1 | G89: 2 | J89: 1;2;3 | L89: 1350;300;260;45 | M89: 1001 | N89: 800 | R89: 1350 | S89: 300 | T89: 260 | U89: 45
A90: 12140 | D90: 1400 | E90: 140 | F90: 1 | G90: 2 | J90: 1;2;3 | L90: 1400;310;270;46 | M90: 1001 | N90: 800 | R90: 1400 | S90: 310 | T90: 270 | U90: 46
A91: 12145 | D91: 1450 | E91: 145 | F91: 1 | G91: 2 | J91: 1;2;3 | L91: 1450;320;280;47 | M91: 1001 | N91: 800 | R91: 1450 | S91: 320 | T91: 280 | U91: 47
A92: 12150 | D92: 1500 | E92: 150 | F92: 1 | G92: 2 | J92: 1;2;3 | L92: 1500;330;290;48 | M92: 1001 | N92: 800 | R92: 1500 | S92: 330 | T92: 290 | U92: 48
A93: 12155 | D93: 1550 | E93: 155 | F93: 1 | G93: 2 | J93: 1;2;3 | L93: 1550;340;300;49 | M93: 1001 | N93: 800 | R93: 1550 | S93: 340 | T93: 300 | U93: 49
A94: 12160 | D94: 1600 | E94: 160 | F94: 1 | G94: 2 | J94: 1;2;3 | L94: 1600;350;310;50 | M94: 1001 | N94: 800 | R94: 1600 | S94: 350 | T94: 310 | U94: 50
A95: 12165 | D95: 1650 | E95: 165 | F95: 1 | G95: 2 | J95: 1;2;3 | L95: 1650;360;320;51 | M95: 1001 | N95: 800 | R95: 1650 | S95: 360 | T95: 320 | U95: 51
A96: 12170 | D96: 1700 | E96: 170 | F96: 1 | G96: 2 | J96: 1;2;3 | L96: 1700;370;330;52 | M96: 1001 | N96: 800 | R96: 1700 | S96: 370 | T96: 330 | U96: 52
A97: 12175 | D97: 1750 | E97: 175 | F97: 1 | G97: 2 | J97: 1;2;3 | L97: 1750;380;340;53 | M97: 1001 | N97: 800 | R97: 1750 | S97: 380 | T97: 340 | U97: 53
A98: 12180 | D98: 1800 | E98: 180 | F98: 1 | G98: 2 | J98: 1;2;3 | L98: 1800;390;350;54 | M98: 1001 | N98: 800 | R98: 1800 | S98: 390 | T98: 350 | U98: 54
A99: 12185 | D99: 1850 | E99: 185 | F99: 1 | G99: 2 | J99: 1;2;3 | L99: 1850;400;360;55 | M99: 1001 | N99: 800 | R99: 1850 | S99: 400 | T99: 360 | U99: 55
A100: 12190 | D100: 1900 | E100: 190 | F100: 1 | G100: 2 | J100: 1;2;3 | L100: 1900;410;370;56 | M100: 1001 | N100: 800 | R100: 1900 | S100: 410 | T100: 370 | U100: 56
A101: 12195 | D101: 1950 | E101: 195 | F101: 1 | G101: 2 | J101: 1;2;3 | L101: 1950;420;380;57 | M101: 1001 | N101: 800 | R101: 1950 | S101: 420 | T101: 380 | U101: 57
A102: 12200 | D102: 2000 | E102: 200 | F102: 1 | G102: 2 | J102: 1;2;3 | L102: 2000;430;390;58 | M102: 1001 | N102: 800 | R102: 2000 | S102: 430 | T102: 390 | U102: 58
A103: 12205 | D103: 2050 | E103: 205 | F103: 1 | G103: 2 | J103: 1;2;3 | L103: 2050;440;400;59 | M103: 1001 | N103: 800 | R103: 2050 | S103: 440 | T103: 400 | U103: 59
A104: 12210 | D104: 2100 | E104: 210 | F104: 1 | G104: 2 | J104: 1;2;3 | L104: 2100;450;410;60 | M104: 1001 | N104: 800 | R104: 2100 | S104: 450 | T104: 410 | U104: 60
A105: 12215 | D105: 2150 | E105: 215 | F105: 1 | G105: 2 | J105: 1;2;3 | L105: 2150;460;420;61 | M105: 1001 | N105: 800 | R105: 2150 | S105: 460 | T105: 420 | U105: 61
A106: 12220 | D106: 2200 | E106: 220 | F106: 1 | G106: 2 | J106: 1;2;3 | L106: 2200;470;430;62 | M106: 1001 | N106: 800 | R106: 2200 | S106: 470 | T106: 430 | U106: 62
A107: 12225 | D107: 2250 | E107: 225 | F107: 1 | G107: 2 | J107: 1;2;3 | L107: 2250;480;440;63 | M107: 1001 | N107: 800 | R107: 2250 | S107: 480 | T107: 440 | U107: 63
A108: 12230 | D108: 2300 | E108: 230 | F108: 1 | G108: 2 | J108: 1;2;3 | L108: 2300;490;450;64 | M108: 1001 | N108: 800 | R108: 2300 | S108: 490 | T108: 450 | U108: 64
A109: 12235 | D109: 2350 | E109: 235 | F109: 1 | G109: 2 | J109: 1;2;3 | L109: 2350;500;460;65 | M109: 1001 | N109: 800 | R109: 2350 | S109: 500 | T109: 460 | U109: 65
A110: 12240 | D110: 2400 | E110: 240 | F110: 1 | G110: 2 | J110: 1;2;3 | L110: 2400;510;470;66 | M110: 1001 | N110: 800 | R110: 2400 | S110: 510 | T110: 470 | U110: 66
A111: 12245 | D111: 2450 | E111: 245 | F111: 1 | G111: 2 | J111: 1;2;3 | L111: 2450;520;480;67 | M111: 1001 | N111: 800 | R111: 2450 | S111: 520 | T111: 480 | U111: 67
A112: 12250 | D112: 2500 | E112: 250 | F112: 1 | G112: 2 | J112: 1;2;3 | L112: 2500;530;490;68 | M112: 1001 | N112: 800 | R112: 2500 | S112: 530 | T112: 490 | U112: 68
A113: 12255 | D113: 2550 | E113: 255 | F113: 1 | G113: 2 | J113: 1;2;3 | L113: 2550;540;500;69 | M113: 1001 | N113: 800 | R113: 2550 | S113: 540 | T113: 500 | U113: 69
A114: 12260 | D114: 2600 | E114: 260 | F114: 1 | G114: 2 | J114: 1;2;3 | L114: 2600;550;510;70 | M114: 1001 | N114: 800 | R114: 2600 | S114: 550 | T114: 510 | U114: 70
A115: 12265 | D115: 2650 | E115: 265 | F115: 1 | G115: 2 | J115: 1;2;3 | L115: 2650;560;520;71 | M115: 1001 | N115: 800 | R115: 2650 | S115: 560 | T115: 520 | U115: 71
A116: 12270 | D116: 2700 | E116: 270 | F116: 1 | G116: 2 | J116: 1;2;3 | L116: 2700;570;530;72 | M116: 1001 | N116: 800 | R116: 2700 | S116: 570 | T116: 530 | U116: 72
A117: 12275 | D117: 2750 | E117: 275 | F117: 1 | G117: 2 | J117: 1;2;3 | L117: 2750;580;540;73 | M117: 1001 | N117: 800 | R117: 2750 | S117: 580 | T117: 540 | U117: 73
A118: 12280 | D118: 2800 | E118: 280 | F118: 1 | G118: 2 | J118: 1;2;3 | L118: 2800;590;550;74 | M118: 1001 | N118: 800 | R118: 2800 | S118: 590 | T118: 550 | U118: 74
A119: 12285 | D119: 2850 | E119: 285 | F119: 1 | G119: 2 | J119: 1;2;3 | L119: 2850;600;560;75 | M119: 1001 | N119: 800 | R119: 2850 | S119: 600 | T119: 560 | U119: 75
A120: 12290 | D120: 2900 | E120: 290 | F120: 1 | G120: 2 | J120: 1;2;3 | L120: 2900;610;570;76 | M120: 1001 | N120: 800 | R120: 2900 | S120: 610 | T120: 570 | U120: 76
A121: 12295 | D121: 2950 | E121: 295 | F121: 1 | G121: 2 | J121: 1;2;3 | L121: 2950;620;580;77 | M121: 1001 | N121: 800 | R121: 2950 | S121: 620 | T121: 580 | U121: 77
A122: 12300 | D122: 3000 | E122: 300 | F122: 1 | G122: 2 | J122: 1;2;3 | L122: 3000;630;590;78 | M122: 1001 | N122: 800 | R122: 3000 | S122: 630 | T122: 590 | U122: 78
A123: 13010 | D123: 100 | E123: 10 | F123: 1 | G123: 3 | J123: 1;2;3 | L123: 100;50;10;20 | M123: 1001 | N123: 800 | R123: 100 | S123: 50 | T123: 10 | U123: 20
A124: 13015 | D124: 150 | E124: 15 | F124: 1 | G124: 3 | J124: 1;2;3 | L124: 150;60;20;21 | M124: 1001 | N124: 800 | R124: 150 | S124: 60 | T124: 20 | U124: 21
A125: 13020 | D125: 200 | E125: 20 | F125: 1 | G125: 3 | J125: 1;2;3 | L125: 200;70;30;22 | M125: 1001 | N125: 800 | R125: 200 | S125: 70 | T125: 30 | U125: 22
A126: 13025 | D126: 250 | E126: 25 | F126: 1 | G126: 3 | J126: 1;2;3 | L126: 250;80;40;23 | M126: 1001 | N126: 800 | R126: 250 | S126: 80 | T126: 40 | U126: 23
A127: 13030 | D127: 300 | E127: 30 | F127: 1 | G127: 3 | J127: 1;2;3 | L127: 300;90;50;24 | M127: 1001 | N127: 800 | R127: 300 | S127: 90 | T127: 50 | U127: 24
A128: 13035 | D128: 350 | E128: 35 | F128: 1 | G128: 3 | J128: 1;2;3 | L128: 350;100;60;25 | M128: 1001 | N128: 800 | R128: 350 | S128: 100 | T128: 60 | U128: 25
A129: 13040 | D129: 400 | E129: 40 | F129: 1 | G129: 3 | J129: 1;2;3 | L129: 400;110;70;26 | M129: 1001 | N129: 800 | R129: 400 | S129: 110 | T129: 70 | U129: 26
A130: 13045 | D130: 450 | E130: 45 | F130: 1 | G130: 3 | J130: 1;2;3 | L130: 450;120;80;27 | M130: 1001 | N130: 800 | R130: 450 | S130: 120 | T130: 80 | U130: 27
A131: 13050 | D131: 500 | E131: 50 | F131: 1 | G131: 3 | J131: 1;2;3 | L131: 500;130;90;28 | M131: 1001 | N131: 800 | R131: 500 | S131: 130 | T131: 90 | U131: 28
A132: 13055 | D132: 550 | E132: 55 | F132: 1 | G132: 3 | J132: 1;2;3 | L132: 550;140;100;29 | M132: 1001 | N132: 800 | R132: 550 | S132: 140 | T132: 100 | U132: 29
A133: 13060 | D133: 600 | E133: 60 | F133: 1 | G133: 3 | J133: 1;2;3 | L133: 600;150;110;30 | M133: 1001 | N133: 800 | R133: 600 | S133: 150 | T133: 110 | U133: 30
A134: =F134*10000+G134*1000+E134 -> 13065 | D134: 650 | E134: 65 | F134: 1 | G134: 3 | J134: 1;2;3 | L134: 650;160;120;31 | M134: 1001 | N134: 800 | R134: 650 | S134: 160 | T134: 120 | U134: 31
A135: 13070 | D135: 700 | E135: 70 | F135: 1 | G135: 3 | J135: 1;2;3 | L135: 700;170;130;32 | M135: 1001 | N135: 800 | R135: 700 | S135: 170 | T135: 130 | U135: 32
A136: 13075 | D136: 750 | E136: 75 | F136: 1 | G136: 3 | J136: 1;2;3 | L136: 750;180;140;33 | M136: 1001 | N136: 800 | R136: 750 | S136: 180 | T136: 140 | U136: 33
A137: 13080 | D137: 800 | E137: 80 | F137: 1 | G137: 3 | J137: 1;2;3 | L137: 800;190;150;34 | M137: 1001 | N137: 800 | R137: 800 | S137: 190 | T137: 150 | U137: 34
A138: 13085 | D138: 850 | E138: 85 | F138: 1 | G138: 3 | J138: 1;2;3 | L138: 850;200;160;35 | M138: 1001 | N138: 800 | R138: 850 | S138: 200 | T138: 160 | U138: 35
A139: 13090 | D139: 900 | E139: 90 | F139: 1 | G139: 3 | J139: 1;2;3 | L139: =_xlfn.CONCAT(R139,";",S139,";",T139,";",U139) -> 900;210;170;36 | M139: 1001 | N139: 800 | R139: 900 | S139: 210 | T139: 170 | U139: 36
A140: 13095 | D140: 950 | E140: 95 | F140: 1 | G140: 3 | J140: 1;2;3 | L140: 950;220;180;37 | M140: 1001 | N140: 800 | R140: 950 | S140: 220 | T140: 180 | U140: 37
A141: 13100 | D141: 1000 | E141: 100 | F141: 1 | G141: 3 | J141: 1;2;3 | L141: 1000;230;190;38 | M141: 1001 | N141: 800 | R141: 1000 | S141: 230 | T141: 190 | U141: 38
A142: 13105 | D142: 1050 | E142: 105 | F142: 1 | G142: 3 | J142: 1;2;3 | L142: 1050;240;200;39 | M142: 1001 | N142: 800 | R142: 1050 | S142: 240 | T142: 200 | U142: 39
A143: 13110 | D143: 1100 | E143: 110 | F143: 1 | G143: 3 | J143: 1;2;3 | L143: 1100;250;210;40 | M143: 1001 | N143: 800 | R143: 1100 | S143: 250 | T143: 210 | U143: 40
A144: 13115 | D144: 1150 | E144: 115 | F144: 1 | G144: 3 | J144: 1;2;3 | L144: 1150;260;220;41 | M144: 1001 | N144: 800 | R144: 1150 | S144: 260 | T144: 220 | U144: 41
A145: 13120 | D145: 1200 | E145: 120 | F145: 1 | G145: 3 | J145: 1;2;3 | L145: 1200;270;230;42 | M145: 1001 | N145: 800 | R145: 1200 | S145: 270 | T145: 230 | U145: 42
A146: 13125 | D146: 1250 | E146: 125 | F146: 1 | G146: 3 | J146: 1;2;3 | L146: 1250;280;240;43 | M146: 1001 | N146: 800 | R146: 1250 | S146: 280 | T146: 240 | U146: 43
A147: 13130 | D147: 1300 | E147: 130 | F147: 1 | G147: 3 | J147: 1;2;3 | L147: 1300;290;250;44 | M147: 1001 | N147: 800 | R147: 1300 | S147: 290 | T147: 250 | U147: 44
A148: 13135 | D148: 1350 | E148: 135 | F148: 1 | G148: 3 | J148: 1;2;3 | L148: 1350;300;260;45 | M148: 1001 | N148: 800 | R148: 1350 | S148: 300 | T148: 260 | U148: 45
A149: 13140 | D149: 1400 | E149: 140 | F149: 1 | G149: 3 | J149: 1;2;3 | L149: 1400;310;270;46 | M149: 1001 | N149: 800 | R149: 1400 | S149: 310 | T149: 270 | U149: 46
A150: 13145 | D150: 1450 | E150: 145 | F150: 1 | G150: 3 | J150: 1;2;3 | L150: 1450;320;280;47 | M150: 1001 | N150: 800 | R150: 1450 | S150: 320 | T150: 280 | U150: 47
A151: 13150 | D151: 1500 | E151: 150 | F151: 1 | G151: 3 | J151: 1;2;3 | L151: 1500;330;290;48 | M151: 1001 | N151: 800 | R151: 1500 | S151: 330 | T151: 290 | U151: 48
A152: 13155 | D152: 1550 | E152: 155 | F152: 1 | G152: 3 | J152: 1;2;3 | L152: 1550;340;300;49 | M152: 1001 | N152: 800 | R152: 1550 | S152: 340 | T152: 300 | U152: 49
A153: 13160 | D153: 1600 | E153: 160 | F153: 1 | G153: 3 | J153: 1;2;3 | L153: 1600;350;310;50 | M153: 1001 | N153: 800 | R153: 1600 | S153: 350 | T153: 310 | U153: 50
A154: 13165 | D154: 1650 | E154: 165 | F154: 1 | G154: 3 | J154: 1;2;3 | L154: 1650;360;320;51 | M154: 1001 | N154: 800 | R154: 1650 | S154: 360 | T154: 320 | U154: 51
A155: 13170 | D155: 1700 | E155: 170 | F155: 1 | G155: 3 | J155: 1;2;3 | L155: 1700;370;330;52 | M155: 1001 | N155: 800 | R155: 1700 | S155: 370 | T155: 330 | U155: 52
A156: 13175 | D156: 1750 | E156: 175 | F156: 1 | G156: 3 | J156: 1;2;3 | L156: 1750;380;340;53 | M156: 1001 | N156: 800 | R156: 1750 | S156: 380 | T156: 340 | U156: 53
A157: 13180 | D157: 1800 | E157: 180 | F157: 1 | G157: 3 | J157: 1;2;3 | L157: 1800;390;350;54 | M157: 1001 | N157: 800 | R157: 1800 | S157: 390 | T157: 350 | U157: 54
A158: 13185 | D158: 1850 | E158: 185 | F158: 1 | G158: 3 | J158: 1;2;3 | L158: 1850;400;360;55 | M158: 1001 | N158: 800 | R158: 1850 | S158: 400 | T158: 360 | U158: 55
A159: 13190 | D159: 1900 | E159: 190 | F159: 1 | G159: 3 | J159: 1;2;3 | L159: 1900;410;370;56 | M159: 1001 | N159: 800 | R159: 1900 | S159: 410 | T159: 370 | U159: 56
A160: 13195 | D160: 1950 | E160: 195 | F160: 1 | G160: 3 | J160: 1;2;3 | L160: 1950;420;380;57 | M160: 1001 | N160: 800 | R160: 1950 | S160: 420 | T160: 380 | U160: 57
A161: 13200 | D161: 2000 | E161: 200 | F161: 1 | G161: 3 | J161: 1;2;3 | L161: 2000;430;390;58 | M161: 1001 | N161: 800 | R161: 2000 | S161: 430 | T161: 390 | U161: 58
A162: 13205 | D162: 2050 | E162: 205 | F162: 1 | G162: 3 | J162: 1;2;3 | L162: 2050;440;400;59 | M162: 1001 | N162: 800 | R162: 2050 | S162: 440 | T162: 400 | U162: 59
A163: 13210 | D163: 2100 | E163: 210 | F163: 1 | G163: 3 | J163: 1;2;3 | L163: 2100;450;410;60 | M163: 1001 | N163: 800 | R163: 2100 | S163: 450 | T163: 410 | U163: 60
A164: 13215 | D164: 2150 | E164: 215 | F164: 1 | G164: 3 | J164: 1;2;3 | L164: 2150;460;420;61 | M164: 1001 | N164: 800 | R164: 2150 | S164: 460 | T164: 420 | U164: 61
A165: 13220 | D165: 2200 | E165: 220 | F165: 1 | G165: 3 | J165: 1;2;3 | L165: 2200;470;430;62 | M165: 1001 | N165: 800 | R165: 2200 | S165: 470 | T165: 430 | U165: 62
A166: 13225 | D166: 2250 | E166: 225 | F166: 1 | G166: 3 | J166: 1;2;3 | L166: 2250;480;440;63 | M166: 1001 | N166: 800 | R166: 2250 | S166: 480 | T166: 440 | U166: 63
A167: 13230 | D167: 2300 | E167: 230 | F167: 1 | G167: 3 | J167: 1;2;3 | L167: 2300;490;450;64 | M167: 1001 | N167: 800 | R167: 2300 | S167: 490 | T167: 450 | U167: 64
A168: 13235 | D168: 2350 | E168: 235 | F168: 1 | G168: 3 | J168: 1;2;3 | L168: 2350;500;460;65 | M168: 1001 | N168: 800 | R168: 2350 | S168: 500 | T168: 460 | U168: 65
A169: 13240 | D169: 2400 | E169: 240 | F169: 1 | G169: 3 | J169: 1;2;3 | L169: 2400;510;470;66 | M169: 1001 | N169: 800 | R169: 2400 | S169: 510 | T169: 470 | U169: 66
A170: 13245 | D170: 2450 | E170: 245 | F170: 1 | G170: 3 | J170: 1;2;3 | L170: 2450;520;480;67 | M170: 1001 | N170: 800 | R170: 2450 | S170: 520 | T170: 480 | U170: 67
A171: 13250 | D171: 2500 | E171: 250 | F171: 1 | G171: 3 | J171: 1;2;3 | L171: 2500;530;490;68 | M171: 1001 | N171: 800 | R171: 2500 | S171: 530 | T171: 490 | U171: 68
A172: 13255 | D172: 2550 | E172: 255 | F172: 1 | G172: 3 | J172: 1;2;3 | L172: 2550;540;500;69 | M172: 1001 | N172: 800 | R172: 2550 | S172: 540 | T172: 500 | U172: 69
A173: 13260 | D173: 2600 | E173: 260 | F173: 1 | G173: 3 | J173: 1;2;3 | L173: 2600;550;510;70 | M173: 1001 | N173: 800 | R173: 2600 | S173: 550 | T173: 510 | U173: 70
A174: 13265 | D174: 2650 | E174: 265 | F174: 1 | G174: 3 | J174: 1;2;3 | L174: 2650;560;520;71 | M174: 1001 | N174: 800 | R174: 2650 | S174: 560 | T174: 520 | U174: 71
A175: 13270 | D175: 2700 | E175: 270 | F175: 1 | G175: 3 | J175: 1;2;3 | L175: 2700;570;530;72 | M175: 1001 | N175: 800 | R175: 2700 | S175: 570 | T175: 530 | U175: 72
A176: 13275 | D176: 2750 | E176: 275 | F176: 1 | G176: 3 | J176: 1;2;3 | L176: 2750;580;540;73 | M176: 1001 | N176: 800 | R176: 2750 | S176: 580 | T176: 540 | U176: 73
A177: 13280 | D177: 2800 | E177: 280 | F177: 1 | G177: 3 | J177: 1;2;3 | L177: 2800;590;550;74 | M177: 1001 | N177: 800 | R177: 2800 | S177: 590 | T177: 550 | U177: 74
A178: 13285 | D178: 2850 | E178: 285 | F178: 1 | G178: 3 | J178: 1;2;3 | L178: 2850;600;560;75 | M178: 1001 | N178: 800 | R178: 2850 | S178: 600 | T178: 560 | U178: 75
A179: 13290 | D179: 2900 | E179: 290 | F179: 1 | G179: 3 | J179: 1;2;3 | L179: 2900;610;570;76 | M179: 1001 | N179: 800 | R179: 2900 | S179: 610 | T179: 570 | U179: 76
A180: 13295 | D180: 2950 | E180: 295 | F180: 1 | G180: 3 | J180: 1;2;3 | L180: 2950;620;580;77 | M180: 1001 | N180: 800 | R180: 2950 | S180: 620 | T180: 580 | U180: 77
A181: 13300 | D181: 3000 | E181: 300 | F181: 1 | G181: 3 | J181: 1;2;3 | L181: 3000;630;590;78 | M181: 1001 | N181: 800 | R181: 3000 | S181: 630 | T181: 590 | U181: 78
A182: 14010 | D182: 100 | E182: 10 | F182: 1 | G182: 4 | J182: 1;2;3 | L182: 100;50;10;20 | M182: 1001 | N182: 800 | R182: 100 | S182: 50 | T182: 10 | U182: 20
A183: 14015 | D183: 150 | E183: 15 | F183: 1 | G183: 4 | J183: 1;2;3 | L183: 150;60;20;21 | M183: 1001 | N183: 800 | R183: 150 | S183: 60 | T183: 20 | U183: 21
A184: 14020 | D184: 200 | E184: 20 | F184: 1 | G184: 4 | J184: 1;2;3 | L184: 200;70;30;22 | M184: 1001 | N184: 800 | R184: 200 | S184: 70 | T184: 30 | U184: 22
A185: 14025 | D185: 250 | E185: 25 | F185: 1 | G185: 4 | J185: 1;2;3 | L185: 250;80;40;23 | M185: 1001 | N185: 800 | R185: 250 | S185: 80 | T185: 40 | U185: 23
A186: 14030 | D186: 300 | E186: 30 | F186: 1 | G186: 4 | J186: 1;2;3 | L186: 300;90;50;24 | M186: 1001 | N186: 800 | R186: 300 | S186: 90 | T186: 50 | U186: 24
A187: 14035 | D187: 350 | E187: 35 | F187: 1 | G187: 4 | J187: 1;2;3 | L187: 350;100;60;25 | M187: 1001 | N187: 800 | R187: 350 | S187: 100 | T187: 60 | U187: 25
A188: 14040 | D188: 400 | E188: 40 | F188: 1 | G188: 4 | J188: 1;2;3 | L188: 400;110;70;26 | M188: 1001 | N188: 800 | R188: 400 | S188: 110 | T188: 70 | U188: 26
A189: 14045 | D189: 450 | E189: 45 | F189: 1 | G189: 4 | J189: 1;2;3 | L189: 450;120;80;27 | M189: 1001 | N189: 800 | R189: 450 | S189: 120 | T189: 80 | U189: 27
A190: 14050 | D190: 500 | E190: 50 | F190: 1 | G190: 4 | J190: 1;2;3 | L190: 500;130;90;28 | M190: 1001 | N190: 800 | R190: 500 | S190: 130 | T190: 90 | U190: 28
A191: 14055 | D191: 550 | E191: 55 | F191: 1 | G191: 4 | J191: 1;2;3 | L191: 550;140;100;29 | M191: 1001 | N191: 800 | R191: 550 | S191: 140 | T191: 100 | U191: 29
A192: 14060 | D192: 600 | E192: 60 | F192: 1 | G192: 4 | J192: 1;2;3 | L192: 600;150;110;30 | M192: 1001 | N192: 800 | R192: 600 | S192: 150 | T192: 110 | U192: 30
A193: 14065 | D193: 650 | E193: 65 | F193: 1 | G193: 4 | J193: 1;2;3 | L193: 650;160;120;31 | M193: 1001 | N193: 800 | R193: 650 | S193: 160 | T193: 120 | U193: 31
A194: 14070 | D194: 700 | E194: 70 | F194: 1 | G194: 4 | J194: 1;2;3 | L194: 700;170;130;32 | M194: 1001 | N194: 800 | R194: 700 | S194: 170 | T194: 130 | U194: 32
A195: 14075 | D195: 750 | E195: 75 | F195: 1 | G195: 4 | J195: 1;2;3 | L195: 750;180;140;33 | M195: 1001 | N195: 800 | R195: 750 | S195: 180 | T195: 140 | U195: 33
A196: 14080 | D196: 800 | E196: 80 | F196: 1 | G196: 4 | J196: 1;2;3 | L196: 800;190;150;34 | M196: 1001 | N196: 800 | R196: 800 | S196: 190 | T196: 150 | U196: 34
A197: 14085 | D197: 850 | E197: 85 | F197: 1 | G197: 4 | J197: 1;2;3 | L197: 850;200;160;35 | M197: 1001 | N197: 800 | R197: 850 | S197: 200 | T197: 160 | U197: 35
A198: =F198*10000+G198*1000+E198 -> 14090 | D198: 900 | E198: 90 | F198: 1 | G198: 4 | J198: 1;2;3 | L198: 900;210;170;36 | M198: 1001 | N198: 800 | R198: 900 | S198: 210 | T198: 170 | U198: 36
A199: 14095 | D199: 950 | E199: 95 | F199: 1 | G199: 4 | J199: 1;2;3 | L199: 950;220;180;37 | M199: 1001 | N199: 800 | R199: 950 | S199: 220 | T199: 180 | U199: 37
A200: 14100 | D200: 1000 | E200: 100 | F200: 1 | G200: 4 | J200: 1;2;3 | L200: 1000;230;190;38 | M200: 1001 | N200: 800 | R200: 1000 | S200: 230 | T200: 190 | U200: 38
A201: 14105 | D201: 1050 | E201: 105 | F201: 1 | G201: 4 | J201: 1;2;3 | L201: 1050;240;200;39 | M201: 1001 | N201: 800 | R201: 1050 | S201: 240 | T201: 200 | U201: 39
... 983 more rows
